Cogmind - Beta 14 @@@ ROGUE MODE // 2024.08.13 @ 13:10:42 Player: javashane Result: Self-destructed Performance ------------- Evolutions (1) 500 Regions Visited (4) 800 Robots Destroyed (35) 175 Value Destroyed (610) 610 Prototype IDs (1) 20 Alien Tech Used (0) 0 Bonus (300) 300 TOTAL SCORE: 2405 Bonus ------- Aligned with FarCom 300 Cogmind --------- Core Integrity 253/400 Matter 300/300 Energy 125/125 System Corruption 9% Temperature Cool (0) Movement Walking (190) Ox1 Location -9/Exiles Parts ------- > --- POWER (1) -------- Light Ion Engine > --- PROPULSION (3) --- Aluminum Leg Aluminum Leg > --- UTILITY (3) ------ Large Storage Unit Sensor Drone Bay (20/20) > --- WEAPON (2) ------- (None) > --- INVENTORY (15) --- Ion Engine Cooling System High-capacity Battery (250) Medium Matter Pod (100) Sensor Array Signal Interpreter Targeting Computer Beam Rifle Improved Grenade Launcher EMP Trap Peak State ------------ > --- POWER ------------ Light Ion Engine > --- PROPULSION ------- Aluminum Leg Aluminum Leg Aluminum Leg > --- UTILITY ---------- Medium Storage Unit Structural Scanner Sensor Drone Bay > --- WEAPON ----------- Improved Grenade Launcher Mining Laser > --- INVENTORY -------- Ion Engine Cooling System High-capacity Battery Medium Matter Pod Sensor Array Signal Interpreter Targeting Computer Beam Rifle Improved Grenade Launcher EMP Trap [Rating: 19] Favorites ----------- Power Light Ion Engine Engine Light Ion Engine Propulsion Aluminum Leg Leg Aluminum Leg Flight Unit Flight Unit Utility Structural Scanner Device Structural Scanner Storage Medium Storage Unit Processor Visual Processing Unit Weapon Mining Laser Energy Gun Small Laser Ballistic Gun Assault Rifle Launcher Improved Grenade Launcher Special Weapon Mining Laser Build | -11 -10 -9 -9 -9 ------- Run | Yrd Mat Mat Min Exi Slots Evolved 2 | . . 2 . . Power . | . . . . . Propulsion 1 | . . 1 . . Utility 1 | . . 1 . . Weapon . | . . . . . Parts Attached 27 | . 5 15 6 1 Power 1 | . . 1 . . Engine 1 | . . 1 . . Core . | . . . . . Reactor . | . . . . . Propulsion 7 | . 4 2 1 . Treads . | . . . . . Leg 5 | . 2 2 1 . Wheel . | . . . . . Hover . | . . . . . Flight 2 | . 2 . . . Utility 8 | . 1 4 2 1 Device 3 | . . 1 2 . Storage 3 | . . 2 . 1 Processor 2 | . 1 1 . . Hackware . | . . . . . Protection . | . . . . . Artifact . | . . . . . Weapon 11 | . . 8 3 . Energy Gun 4 | . . 4 . . Energy Cannon . | . . . . . Ballistic Gun 1 | . . 1 . . Ballistic Cannon . | . . . . . Launcher 2 | . . . 2 . Special Weapon 4 | . . 3 1 . Impact Weapon . | . . . . . Slashing Weapon . | . . . . . Piercing Weapon . | . . . . . Special Melee Weapon . | . . . . . Unidentified Prototypes 1 | . . . 1 . Parts Lost 10 | . . 5 2 3 Power 1 | . . 1 . . Propulsion 3 | . . 1 2 . Utility 1 | . . . . 1 Weapon 5 | . . 3 . 2 Highest Loss Streak 3 | . . 2 1 3 To Critical Strikes . | . . . . . Average Slot Usage (%) 91 | . 91 95 98 88 Engine 10 | . 14 8 11 11 Leg 26 | . 27 31 31 22 Device 16 | . . 8 21 22 Storage 11 | . 14 13 11 11 Processor 3 | . 6 11 . . Energy Gun 7 | . 28 17 . . Launcher 7 | . . . 10 11 Special Weapon 7 | . . 1 10 11 Peak Build Rating 19 | 6 8 13 19 18 Average Rating 14 | 6 6 11 13 17 On Entrance 9 | 6 6 8 11 18 Naked Turns . | . . . . . Heaviest Build 45 | 12 12 20 35 45 Greatest Support 30 | 20 20 30 30 20 Greatest Overweight (x) 3 | . 3 . 1 2 Average Overweight (x) . | . . . . 1 Largest Inventory Capacity 15 | 8 8 10 10 15 Average Capacity 11 | 8 8 10 10 13 Most Carried 10 | 7 8 10 10 10 Average Carried 9 | 6 7 8 9 10 Final Capacity 15 | 8 8 10 10 15 Final Carried 10 | 7 8 10 10 10 Class Distribution -------------------- 83% | Mutant 16% | Scavenger-Mutant Dominant Class ---------------- Mutant | -10/Materials Scavenger-Mutant | -9/Materials Mutant | -9/Mines Mutant | -9/Exiles Resources | -11 -10 -9 -9 -9 ----------- Run | Yrd Mat Mat Min Exi Matter Collected 661 | 200 91 229 141 . Remotely . | . . . . . Salvage Created 771 | 95 240 399 37 . Parts 59 | 3 17 27 12 . Haulers Intercepted 1 | . 1 . . . Recyclers Shooed 2 | . 2 . . . Parts Field Recycled . | . . . . . Retrieved Matter . | . . . . . Parts Self-Destructed . | . . . . . Prevented . | . . . . . Kills | -11 -10 -9 -9 -9 ------- Run | Yrd Mat Mat Min Exi Combat Hostiles Destroyed 29 | . 9 9 11 . Guns 17 | . 9 8 . . Cannons 2 | . . 1 1 . AOE 10 | . . . 10 . Classes Destroyed 8 | 2 4 2 . . Worker 1 | . 1 . . . Tunneler 1 | 1 . . . . Hauler 1 | . 1 . . . Recycler 1 | 1 . . . . Watcher 2 | . 1 1 . . Swarmer 20 | . 9 . 11 . Grunt 6 | . . 6 . . Sentry 3 | . . 3 . . Best Kill Streak 4 | 2 3 3 4 . Combat Bots Only 4 | . 3 3 4 . Max Kills in Single Turn 2 | 1 2 1 2 . Gunslinging 1 | . 1 . . . Exploded 2 | . . . 2 . Melee . | . . . . . Uniques/NPCs Destroyed . | . . . . . Combat | -11 -10 -9 -9 -9 -------- Run | Yrd Mat Mat Min Exi Hostile Shots Fired 117 | . 56 41 20 . Missed 35 | . 17 7 11 . Damage Taken 1319 | . 323 497 198 301 Core 234 | . 87 70 34 43 Absorbed by Shields . | . . . . . Regen/Repaired (Parts) 2 | . 2 . . . Core Remaining (%) 82 | 100 65 . . . Volleys Fired 119 | 12 41 38 17 11 Largest 2 | 2 2 2 1 1 Hottest 165 | 80 80 165 100 100 Shots Fired 199 | 24 82 65 17 11 Gun 161 | 24 82 55 . . Cannon . | . . . . . Launcher 7 | . . . 7 . Special 31 | . . 10 10 11 Kinetic 16 | . . 16 . . Thermal 176 | 24 82 49 10 11 Explosive 7 | . . . 7 . Electromagnetic . | . . . . . Robot Hit Streak 9 | 9 6 9 2 . Robot Miss Streak 4 | 2 4 3 4 . Penetration Max . | . . . . . Secondary Targets 3 | . 3 . . . Max Gunslinging Chain 1 | . 1 . . . Shots Hit Robots 105 | 17 44 40 4 . Core Hits 48 | 3 16 17 12 . Critical Kills . | . . . . . Critical Parts Destroyed . | . . . . . Critical Strikes . | . . . . . Melee Attacks . | . . . . . Impact . | . . . . . Slashing . | . . . . . Piercing . | . . . . . Sneak Attacks . | . . . . . Combat Hostiles . | . . . . . Follow-up Attacks . | . . . . . Damage Inflicted 2049 | 183 498 602 766 . Guns 1229 | 183 498 548 . . Cannons . | . . . . . Explosions 714 | . . . 714 . Melee . | . . . . . Ramming 4 | . . 4 . . Kinetic 168 | . . 168 . . Thermal 1163 | 183 498 430 52 . Explosive 714 | . . . 714 . Electromagnetic . | . . . . . Impact . | . . . . . Slashing . | . . . . . Piercing . | . . . . . Highest Corruption 9 | . . . . 9 Average Corruption 9 | . . . . 9 Corruption Purged . | . . . . . Corruption Blocked . | . . . . . Effects 1 | . . . . 1 Data Loss (minor) 1 | . . . . 1 Overload Shots . | . . . . . Overflow Damage 62 | . . . 62 . Projectiles 12 | . . . 12 . Explosions 50 | . . . 50 . Melee . | . . . . . Knockbacks . | . . . . . Impact . | . . . . . Kinetic . | . . . . . Secondary . | . . . . . Self-Inflicted Damage 87 | . . . 87 . Shots 2 | . . . 2 . Rammed . | . . . . . Targets Rammed 1 | . . 1 . . Kicked 1 | . . 1 . . Crushed . | . . . . . Highest Temperature 198 | 90 198 198 66 16 Average Temperature 45 | 36 69 39 23 7 Received Heat Transfer 237 | . . 219 18 . Siege Activations . | . . . . . Robots Corrupted . | . . . . . Combat Hostiles . | . . . . . Parts Fried . | . . . . . Impact Corruptions . | . . . . . Robots Melted . | . . . . . Combat Hostiles . | . . . . . Parts Melted 8 | 1 4 3 . . Heat Transferred 2591 | 425 1100 966 100 . Parts Sabotaged . | . . . . . Parts Stolen . | . . . . . Parts Stripped . | . . . . . Power Chain Reactions . | . . . . . Alert | -11 -10 -9 -9 -9 ------- Run | Yrd Mat Mat Min Exi Peak Influence 273 | 10 269 157 273 . Initial 61 | . 6 53 61 . Average 134 | 4 113 90 211 . Maximum Alert Level 1 | . 1 . 1 . Low Security (%) 81 | 100 95 100 50 . Level 1 18 | . 4 . 49 . Level 2 . | . . . . . Level 3 . | . . . . . Level 4 . | . . . . . Level 5 . | . . . . . High Security . | . . . . . Max Security . | . . . . . Squads Dispatched 2 | . . 2 . . Investigation . | . . . . . Extermination . | . . . . . Reinforcement 2 | . . 2 . . Assault . | . . . . . Garrison . | . . . . . Intercept . | . . . . . Searches Triggered . | . . . . . Construction Impeded . | . . . . . Haulers Reinforced . | . . . . . Active Scanning Responses . | . . . . . Cargo Convoy Interrupts . | . . . . . Stealth | -11 -10 -9 -9 -9 --------- Run | Yrd Mat Mat Min Exi Distress Signals 1 | . . 1 . . Communications Jammed . | . . . . . Distress Signals . | . . . . . Times Spotted 39 | . 14 12 13 . Peak Tracking Total 4 | . 3 3 4 . Tactical Retreats 1 | . 1 . . . Traps | -11 -10 -9 -9 -9 ------- Run | Yrd Mat Mat Min Exi Traps Triggered . | . . . . . Indirectly . | . . . . . Trap Hack Attempts . | . . . . . Triggered . | . . . . . Disarmed . | . . . . . Reprogrammed . | . . . . . Reused . | . . . . . Traps Extracted . | . . . . . Installed . | . . . . . Triggered . | . . . . . Most Traps Carried 1 | . . . 1 1 Machines | -11 -10 -9 -9 -9 ---------- Run | Yrd Mat Mat Min Exi Machines Disabled 3 | . . . 3 . Max in Single Turn 1 | . . . 1 . Machines Repaired . | . . . . . Machines Dismantled . | . . . . . Machines Sabotaged . | . . . . . Overloaded Fab Kills . | . . . . . Hacking | -11 -10 -9 -9 -9 --------- Run | Yrd Mat Mat Min Exi Machines Accessed 9 | . 6 1 . 2 Terminals 6 | . 5 1 . . Fabricators . | . . . . . Repair Stations 1 | . 1 . . . Recycling Units . | . . . . . Scanalyzers . | . . . . . Garrison Access . | . . . . . Total Hacks 24 | . 11 2 . 11 Successful 21 | . 9 1 . 11 Failed 3 | . 2 1 . . Catastrophic 1 | . 1 . . . Database Lockouts . | . . . . . Manual 8 | . 4 2 . 2 Terminals 11 | . 9 2 . . Fabricators . | . . . . . Repair Stations 2 | . 2 . . . Recycling Units . | . . . . . Scanalyzers . | . . . . . Garrison Access . | . . . . . Terminal Hacks 19 | . 7 1 . 11 Record 13 | . 2 . . 11 Robot Analysis 3 | . 2 1 . . Alert Level 1 | . 1 . . . Transport Status 1 | . 1 . . . Zone Layout 1 | . 1 . . . Fabricator Hacks . | . . . . . Repair Station Hacks 2 | . 2 . . . Scan Component 1 | . 1 . . . Repair 1 | . 1 . . . Recycling Unit Hacks . | . . . . . Scanalyzer . | . . . . . Garrison Access Hacks . | . . . . . Unauthorized Hacks . | . . . . . Terminals . | . . . . . Fabricators . | . . . . . Repair Stations . | . . . . . Recycling Units . | . . . . . Scanalyzers . | . . . . . Garrison Access . | . . . . . Data Cores Recovered . | . . . . . Used . | . . . . . Hacking Detections 3 | . 3 . . . Full Trace Events . | . . . . . Feedback Events . | . . . . . Feedback Blocked . | . . . . . Robot Schematics Acquired . | . . . . . Robots Built . | . . . . . Authchips . | . . . . . Time . | . . . . . Total Robot Build Rating . | . . . . . Part Schematics Acquired . | . . . . . Parts Built . | . . . . . Authchips . | . . . . . Time . | . . . . . Total Part Build Rating . | . . . . . Parts Repaired 1 | . 1 . . . Time 26 | . 26 . . . Parts Recycled . | . . . . . Recycled Matter . | . . . . . Retrieved Matter . | . . . . . Retrieved Components . | . . . . . Parts Scanalyzed . | . . . . . Part Schematics Acquired . | . . . . . Parts Damaged . | . . . . . Bothacking | -11 -10 -9 -9 -9 ------------ Run | Yrd Mat Mat Min Exi Used RIF Installer . | . . . . . Robots Hacked . | . . . . . Non-combat . | . . . . . Combat . | . . . . . Robot Hacks Applied . | . . . . . Relay Couplers Released . | . . . . . Fabnet Peak Effective % . | . . . . . Robots Rewired . | . . . . . Allies Hacked . | . . . . . Hacks Repelled . | . . . . . Allies | -11 -10 -9 -9 -9 -------- Run | Yrd Mat Mat Min Exi Total Allies . | . . . . . Largest Group . | . . . . . Highest-Rated Group . | . . . . . Highest-Rated Ally . | . . . . . Total Orders 4 | . . . 2 2 EXPLORE 2 | . . . 1 1 RETURN 2 | . . . 1 1 Ally Attacks . | . . . . . Total Damage . | . . . . . Kills . | . . . . . Allies Corrupted . | . . . . . Allies Melted . | . . . . . Intel | -11 -10 -9 -9 -9 ------- Run | Yrd Mat Mat Min Exi Robot Analysis Total 3 | . 2 1 . . Derelict Logs Recovered 2 | . . . 2 . Drone Launches 39 | . . . 20 19 Drone Recoveries 39 | . . . 20 19 Exploration | -11 -10 -9 -9 -9 ------------- Run | Yrd Mat Mat Min Exi Turns Passed 3756 | 83 532 763 722 1656 Spaces Moved 1633 | 39 297 368 387 542 Core 2 | . 2 . . . Treads . | . . . . . Legs 1629 | 39 293 368 387 542 Wheels . | . . . . . Hover . | . . . . . Flight 2 | . 2 . . . Fastest Speed 120 | 120 120 120 120 190 Average Speed 165 | 120 121 120 129 250 Slowest Speed 260 | 120 200 120 190 260 Overloaded Moves . | . . . . . Propulsion Burnouts . | . . . . . Robots Hopped . | . . . . . Cave-ins Triggered 1 | . . . . 1 Exploration Rate (%) 54 | 3 51 33 93 92 Regions Visited 4 Branch Regions 2 Pre-discovered Areas . | . . . . . Known Exits Taken . | . . . . . Unknown Exits Taken 4 | 1 1 1 1 . Scrap Searched 2 | . . . 2 . Spaces Dug 16 | . . 6 3 7 Terrain Destroyed 101 | . . 6 86 9 Melee . | . . . . . Projectile 19 | . . 6 4 9 AOE 82 | . . . 82 . Terrain Rammed . | . . . . . Walls Destroyed . | . . . . . Machines Disabled . | . . . . . Actions | -11 -10 -9 -9 -9 --------- Run | Yrd Mat Mat Min Exi Total 2421 | 51 388 603 571 808 Wait 602 | . 30 165 157 250 Move 1628 | 38 296 367 386 541 Hop . | . . . . . Pick Up 22 | 1 7 11 3 . Fast Attach 8 | . 5 3 . . Attach 9 | . . 7 2 . Detach 2 | . . 1 1 . Swap 10 | . . 5 4 1 Drop 16 | . 9 5 1 1 Fire 119 | 12 41 38 17 11 Melee . | . . . . . Ram . | . . . . . Kick 1 | . . 1 . . Crush . | . . . . . Escape Stasis 1 | . . . . 1 Rewire 3 | . . . . 3 Trap . | . . . . . Miscellaneous . | . . . . . Route ------- -11/Scrapyard -10/Materials (discovered 3 exits: *Mat / [*Min x2]) -9/Materials (discovered 2 exits: [*Min x2]) -9/Mines (discovered 2 exits: [*Mat] / *Exi) -9/Exiles (discovered 2 exits: [*Min x2]) History --------- Turn | Location | Event 1 | -11/Scrapyard | Discovered new exit (range 3) 84 | -11/Scrapyard | Entered Materials 150 | -10/Materials | Repaired Wheel 300 | -10/Materials | Discovered new exit (range 11) 312 | -10/Materials | Build established: Mutant 563 | -10/Materials | Discovered new exit (range 6) 584 | -10/Materials | Discovered new exit (range 3) 616 | -10/Materials | Entered another Materials area 616 | -9/Materials | Evolved 2 slots: Propulsion x1, Utility x1 996 | -9/Materials | Build established: Scavenger-Mutant 1235 | -9/Materials | Discovered new exit (range 5) 1236 | -9/Materials | Discovered new exit (range 15) 1379 | -9/Materials | Entered Mines 1532 | -9/Mines | Found a hidden stash of uninstalled traps 1574 | -9/Mines | Build established: Mutant 1678 | -9/Mines | Learned Materials terminal intel 1721 | -9/Mines | Discovered new exit (range 5) 1870 | -9/Mines | Found the Drone Emporium 1891 | -9/Mines | Found Prototype Device 1892 | -9/Mines | Identified Sensor Drone Bay 2092 | -9/Mines | Deemed a non-threat by the Exiles lab entrance 2092 | -9/Mines | Discovered new exit (range 5) 2101 | -9/Mines | Entered Exiles 2110 | -9/Exiles | Discovered new exit (range 28) 2197 | -9/Exiles | Discovered new exit (range 131) 2399 | -9/Exiles | Met 8R-AWN 2431 | -9/Exiles | Met EX-HEX 2545 | -9/Exiles | Met EX-DEC 2902 | -9/Exiles | Visited The Gauntlet 3349 | -9/Exiles | Met EX-BIN 3557 | -9/Exiles | Aligned with FarCom system 3559 | -9/Exiles | Given EX-Vault access code 3754 | -9/Exiles | Crushed by falling debris 3757 | -9/Exiles | Self-destructed Last Messages --------------- 03559_ FarCom alignment achieved. EX-BIN: All done! Way to be a champ, here's the access code as promised: \\HALA. Only take ONE, mind you, and sorry we don't have much left to pick from. A bunch of our other prototypes were already given to Derelicts out handling other tasks for us. I haven't taken inventory for a while and I'm not sure what's in there now, but if there are more than one of the same prototype you can choose to take all of those and it just counts as your one! 03627_ Connecting with DEC's Terminal... 03674_ Connecting with EX-Vault Access... 03753_ The unstable cave ceiling collapses. 03754_ Crushed by falling debris. 03754_ Imp. Grenade Launcher destroyed. 03754_ System corrupted by crushing effect (+3). 03754_ Structural Scanner destroyed. 03754_ System corrupted by crushing effect (+1). 03754_ Mining Laser destroyed. 03754_ System corrupted by crushing effect (+5). 03756_ System corrupted: Component data lost. Map ----- +----------------------------------------------------+ | | | | | | | | | | | | | | | | | | | | | | | | | | | | | | | | | | | | | | | | | | | | | | | ???????????????????????#####?????????????????????? | | ??????????????????????? ####?????????????????????? | | ??????????????????????? #@###????????????????????? | | ??????????????????????? #####????????????????????? | | ???????????????## # ##????????????????????? | | ???????????????########## ###????????????????????? | | ???????????????##X " ####????????????????????? | | ???????????????### "####?????????????????????? | | ???????????????### ########??????????????????? | | ????????????????## #########?????????????????? | | ????????????????## ##""""""#?????????????????? | | ????????????????## ## """#?????????????????? | | ????????????????## X""#?????????????????? | | ????????########## ## """#?????????????????? | | ????????########## ##""""""#?????????????????? | | ????????##""""""## ##?######?????????????????? | | ????????##"""" ## ##?#####??????????????????? | | ????????##""X" ##????????????????????????? | | ????????##" ##????????????????????????? | | ????????##" ## ############??????????????? | | ????????##""""""## ############??????????????? | | ????????###"###### ###"""""""##??????????????? | | ???????? "###### ###"""""""##??????????????? | | ????????""" ???### ###"""""""##??????????????? | | ????????""" ???### ###"" """"##??????????????? | | ?????????"" #??##" """"##??????????????? | | ?????????####??##" """##??????????????? | +----------------------------------------------------+ Best States ------------- Heat Dissipation 28 Energy Generation 10 Energy Capacity 250 Matter Stores 400 Matter Capacity 400 Sight Range 18 Robot Scan Range 14 Terrain Scan Density 10 Evasion (%) 55 Targeting Accuracy 5 Item Schematics ----------------- None Robot Schematics ------------------ None Fabricated ------------ Nothing Alien Tech Used ----------------- None Achievements -------------- Release The Drones! Challenges ------------ None Game ------ Seed LegWeaponRailgun Manual? 0 Play Time 00:28:30 Cumulative 30.5 hours Start 2024.08.13 @ 06:35:25 End 2024.08.13 @ 13:10:42 Sessions 3 Manual Loads 0 Difficulty Rogue Special Mode None Game No. 49 Rogue 48 Adventurer 1 Explorer 0 Win Type - Total 0 Types 0/0/0/0/0/0/0/0/0 Lore% 8 Gallery% 28 Achievement% 23 Wizard Run 0 Options --------- Layout 0 ASCII 0 Keyboard 0 Movement Arrows Keybinds 0 Fullscreen 1 Font 24/Smallcaps Map View 76x50 Zoom Use 0% Tactical HUD 1 Map Filters NONE Filters NONE Steam 1 RUN: f734ff7d-82db-405e-b9a8-dfe60dca995f